[Event "FIDE Women World Rapid 2024"]
[Site "New York"]
[Date "2024.12.27"]
[Round "8.1"]
[White "Ju, Wenjun"]
[Black "Lagno, Kateryna"]
[Result "1/2-1/2"]
[ECO "D35"]
[WhiteElo "2563"]
[BlackElo "2515"]
[Annotator "ChessBase"]
[PlyCount "44"]
[EventDate "2024.12.14"]
[EventType "swiss"]
[EventCountry "USA"]
[SourceTitle "playchess.com"]
[Source "ChessBase"]
[SourceQuality "1"]
[TimeControl "900+10"]

1. d4 {[%emt 0:00:02]} Nf6 {[%emt 0:00:01]} 2. c4 {[%emt 0:00:01]} e6 {[%emt 0:00:01]} 3. Nc3 {[%emt 0:00:01]} d5 {[%emt 0:00:01]} 4. cxd5 {[%emt 0:00:04]} exd5 {[%emt 0:00:01]} 5. Bg5 {[%emt 0:00:02]} c6 {[%emt 0:00:12]} 6. e3 {[%emt 0:00:05]} Bd6 {[%emt 0:00:10]} 7. Bd3 {[%emt 0:00:22]} O-O {[%emt 0:00:11]} 8. Nge2 {[%emt 0:00:23]} Re8 {[%emt 0:01:16]} 9. h3 {[%emt 0:00:52]} Nbd7 {[%emt 0:00:12]} 10. Qc2 {[%emt 0:00:10]} Nf8 {[%emt 0:00:21]} 11. O-O {[%emt 0:01:49]} Ng6 {[%emt 0:01:38]} 12. Rfe1 {[%emt 0:04:23]} h6 {[%emt 0:04:01]} 13. Bxf6 {[%emt 0:00:01]} Qxf6 {[%emt 0:00:02]} 14. e4 {[%emt 0:00:01]} dxe4 {[%emt 0:03:36]} 15. Nxe4 {[%emt 0:00:02]} Qd8 {[%emt 0:00:01]} 16. Nxd6 {[%emt 0:04:03]} Qxd6 {[%emt 0:00:02]} 17. Qc5 {[%emt 0:00:02]} Qxc5 {[%emt 0:00:37]} 18. dxc5 {[%emt 0:00:01]} Be6 {[%emt 0:00:09]} 19. Nc3 {[%emt 0:00:25]} Nf4 {[%emt 0:01:38]} 20. Bf1 {[%emt 0:00:05]} Bf5 {[%emt 0:00:11]} 21. Rxe8+ {[%emt 0:00:56]} Rxe8 {[%emt 0:00:01]} 22. Rd1 {[%emt 0:00:02]} Kf8 {[%emt 0:00:28]} 1/2-1/2

[Event "FIDE Women World Rapid 2024"]
[Site "New York"]
[Date "2024.12.27"]
[Round "8.1"]
[White "Khademalsharieh, Sarasadat"]
[Black "Balabayeva, Xeniya"]
[Result "1-0"]
[ECO "E05"]
[WhiteElo "2458"]
[BlackElo "2315"]
[Annotator "ChessBase"]
[PlyCount "73"]
[EventDate "2024.12.14"]
[EventType "swiss"]
[EventCountry "USA"]
[SourceTitle "playchess.com"]
[Source "ChessBase"]
[SourceQuality "1"]
[TimeControl "900+10"]

1. Nf3 {[%emt 0:00:03]} d5 {[%emt 0:00:01]} 2. g3 {[%emt 0:00:07]} Nf6 {[%emt 0:00:02]} 3. c4 {[%emt 0:00:11]} e6 {[%emt 0:00:02]} 4. Bg2 {[%emt 0:00:04]} Be7 {[%emt 0:00:02]} 5. O-O {[%emt 0:00:11]} O-O {[%emt 0:00:03]} 6. d4 {[%emt 0:00:02]} dxc4 {[%emt 0:00:03]} 7. Qc2 {[%emt 0:00:05]} a6 {[%emt 0:00:03]} 8. a4 {[%emt 0:00:04]} c5 {[%emt 0:00:16]} 9. dxc5 {[%emt 0:00:15]} Bxc5 {[%emt 0:00:05]} 10. Qxc4 {[%emt 0:00:08]} Qe7 {[%emt 0:01:24]} 11. Ne5 {[%emt 0:00:59]} Rd8 {[%emt 0:01:15]} 12. Nd3 {[%emt 0:00:37]} Bd4 {[%emt 0:01:02]} 13. Nc3 {[%emt 0:00:47]} Nc6 {[%emt 0:04:39]} 14. a5 {[%emt 0:03:51]} e5 {[%emt 0:02:03]} 15. Bg5 {[%emt 0:01:32]} Be6 {[%emt 0:00:16]} 16. Qa4 {[%emt 0:00:06]} h6 {[%emt 0:00:53]} 17. Bxf6 {[%emt 0:00:58]} Qxf6 {[%emt 0:00:02]} 18. Rac1 {[%emt 0:00:54]} Rac8 {[%emt 0:00:54]} 19. Ne4 {[%emt 0:00:14]} Qe7 {[%emt 0:01:35]} 20. Nec5 {[%emt 0:02:26]} Bxc5 {[%emt 0:00:52]} 21. Rxc5 {[%emt 0:00:20]} Rxd3 {[%emt 0:00:21]} 22. Rxc6 {[%emt 0:00:02]} Rxc6 {[%emt 0:00:02]} 23. exd3 {[%emt 0:00:13]} Rc7 {[%emt 0:00:35]} 24. Re1 {[%emt 0:00:14]} Qd6 {[%emt 0:00:31]} 25. h4 {[%emt 0:00:52]} g6 {[%emt 0:00:23]} 26. Qe4 {[%emt 0:00:19]} Rc5 {[%emt 0:00:11]} 27. Qb4 {[%emt 0:00:39]} Bd5 {[%emt 0:00:13]} 28. d4 {[%emt 0:00:11]} exd4 {[%emt 0:01:13]} 29. Re8+ {[%emt 0:00:14]} Kg7 {[%emt 0:00:16]} 30. Qxd4+ {[%emt 0:00:07]} f6 {[%emt 0:00:01]} 31. b4 {[%emt 0:01:55]} Rb5 {[%emt 0:00:24]} 32. Bxd5 {[%emt 0:00:14]} Rxd5 {[%emt 0:00:04]} 33. Qe4 {[%emt 0:00:02]} Kf7 {[%emt 0:00:41]} 34. Rh8 {[%emt 0:00:04]} Qe5 {[%emt 0:00:09]} 35. Rh7+ {[%emt 0:00:06]} Kf8 {[%emt 0:00:02]} 36. Qxg6 {[%emt 0:00:09]} Qe1+ {[%emt 0:00:17]} 37. Kg2 {[%emt 0:00:01]} 1-0

[Event "FIDE Women World Rapid 2024"]
[Site "New York"]
[Date "2024.12.27"]
[Round "8.2"]
[White "Dronavalli, Harika"]
[Black "Lei, Tingjie"]
[Result "1-0"]
[ECO "A24"]
[WhiteElo "2489"]
[BlackElo "2549"]
[Annotator "ChessBase"]
[PlyCount "153"]
[EventDate "2024.12.14"]
[EventType "swiss"]
[EventCountry "USA"]
[SourceTitle "playchess.com"]
[Source "ChessBase"]
[SourceQuality "1"]
[TimeControl "900+10"]

1. Nf3 {[%emt 0:00:02]} Nf6 {[%emt 0:00:02]} 2. g3 {[%emt 0:00:01]} g6 {[%emt 0:00:02]} 3. Bg2 {[%emt 0:00:07]} Bg7 {[%emt 0:00:02]} 4. O-O {[%emt 0:00:07]} O-O {[%emt 0:00:02]} 5. c4 {[%emt 0:00:01]} d6 {[%emt 0:00:05]} 6. Nc3 {[%emt 0:00:06]} e5 {[%emt 0:00:03]} 7. d3 {[%emt 0:00:07]} Re8 {[%emt 0:00:33]} 8. Rb1 {[%emt 0:00:28]} a5 {[%emt 0:00:09]} 9. b3 {[%emt 0:00:37]} c5 {[%emt 0:01:24]} 10. Ne1 {[%emt 0:00:55]} Nc6 {[%emt 0:00:07]} 11. Nc2 {[%emt 0:00:09]} Be6 {[%emt 0:00:39]} 12. a3 {[%emt 0:00:27]} d5 {[%emt 0:00:27]} 13. Bg5 {[%emt 0:00:03]} Ne7 {[%emt 0:02:48]} 14. Qc1 {[%emt 0:05:26]} Rc8 {[%emt 0:01:02]} 15. e4 {[%emt 0:01:34]} d4 {[%emt 0:01:06]} 16. Nb5 {[%emt 0:00:07]} Ra8 {[%emt 0:01:39]} 17. f4 {[%emt 0:00:50]} h6 {[%emt 0:01:37]} 18. f5 {[%emt 0:00:27]} gxf5 {[%emt 0:01:27]} 19. Bxf6 {[%emt 0:00:41]} Bxf6 {[%emt 0:00:16]} 20. Qxh6 {[%emt 0:00:03]} Bg7 {[%emt 0:00:08]} 21. Qh5 {[%emt 0:00:24]} Qd7 {[%emt 0:00:35]} 22. exf5 {[%emt 0:01:03]} Bxf5 {[%emt 0:00:17]} 23. Be4 {[%emt 0:00:23]} Bg6 {[%emt 0:00:05]} 24. Bxg6 {[%emt 0:00:31]} Nxg6 {[%emt 0:00:09]} 25. Rbe1 {[%emt 0:00:48]} e4 {[%emt 0:00:18]} 26. Rxe4 {[%emt 0:00:39]} Rxe4 {[%emt 0:00:04]} 27. dxe4 {[%emt 0:00:01]} Re8 {[%emt 0:00:48]} 28. Qf5 {[%emt 0:01:41]} Re6 {[%emt 0:00:43]} 29. Ne1 {[%emt 0:00:19]} Qe7 {[%emt 0:00:59]} 30. Nd3 {[%emt 0:00:12]} Rxe4 {[%emt 0:00:58]} 31. Qxc5 {[%emt 0:00:05]} Qxc5 {[%emt 0:00:27]} 32. Nxc5 {[%emt 0:00:01]} Re3 {[%emt 0:00:01]} 33. Rd1 {[%emt 0:00:53]} b6 {[%emt 0:00:15]} 34. Nd3 {[%emt 0:00:01]} Ne5 {[%emt 0:00:29]} 35. Nxe5 {[%emt 0:00:02]} Bxe5 {[%emt 0:00:01]} 36. b4 {[%emt 0:00:06]} axb4 {[%emt 0:00:28]} 37. axb4 {[%emt 0:00:01]} Rb3 {[%emt 0:00:15]} 38. Nxd4 {[%emt 0:00:13]} Bxd4+ {[%emt 0:00:02]} 39. Rxd4 {[%emt 0:00:03]} Rxb4 {[%emt 0:00:01]} 40. Rg4+ {[%emt 0:01:15]} Kf8 {[%emt 0:00:31]} 41. h3 {[%emt 0:00:01]} f6 {[%emt 0:00:24]} 42. Kf2 {[%emt 0:00:03]} Kf7 {[%emt 0:00:05]} 43. Ke3 {[%emt 0:00:45]} b5 {[%emt 0:00:22]} 44. c5 {[%emt 0:00:14]} Rb1 {[%emt 0:00:21]} 45. Kd4 {[%emt 0:00:05]} Ke6 {[%emt 0:00:05]} 46. Re4+ {[%emt 0:00:11]} Kd7 {[%emt 0:00:07]} 47. Kd5 {[%emt 0:00:04]} b4 {[%emt 0:00:10]} 48. c6+ {[%emt 0:00:06]} Kc7 {[%emt 0:00:06]} 49. Re7+ {[%emt 0:00:03]} Kd8 {[%emt 0:00:03]} 50. Rb7 {[%emt 0:00:38]} b3 {[%emt 0:00:02]} 51. Kd6 {[%emt 0:00:09]} Kc8 {[%emt 0:00:23]} 52. Rc7+ {[%emt 0:00:07]} Kd8 {[%emt 0:00:01]} 53. Rb7 {[%emt 0:00:00]} Kc8 {[%emt 0:00:01]} 54. Ke6 {[%emt 0:00:04]} b2 {[%emt 0:00:09]} 55. Kf7 {[%emt 0:00:02]} f5 {[%emt 0:00:29]} 56. Kf6 {[%emt 0:00:16]} Rg1 {[%emt 0:00:13]} 57. Rxb2 {[%emt 0:00:05]} Rxg3 {[%emt 0:00:01]} 58. h4 {[%emt 0:00:21]} f4 {[%emt 0:00:09]} 59. Kf5 {[%emt 0:00:26]} f3 {[%emt 0:00:20]} 60. Rf2 {[%emt 0:00:03]} Kc7 {[%emt 0:00:09]} 61. Kf4 {[%emt 0:00:11]} Rh3 {[%emt 0:00:22]} 62. Kg4 {[%emt 0:00:01]} Rh1 {[%emt 0:00:01]} 63. Rxf3 {[%emt 0:00:11]} Kxc6 {[%emt 0:00:01]} 64. Rd3 {[%emt 0:00:22]} Rg1+ {[%emt 0:00:24]} 65. Kf5 {[%emt 0:00:02]} Rf1+ {[%emt 0:00:02]} 66. Kg5 {[%emt 0:00:01]} Rg1+ {[%emt 0:00:01]} 67. Kh6 {[%emt 0:00:03]} Kc7 {[%emt 0:00:28]} 68. h5 {[%emt 0:00:01]} Rh1 {[%emt 0:00:10]} 69. Rd5 {[%emt 0:00:03]} Kc6 {[%emt 0:00:02]} 70. Rg5 {[%emt 0:00:15]} Kd6 {[%emt 0:00:15]} 71. Kg7 {[%emt 0:00:03]} Ke7 {[%emt 0:00:17]} 72. h6 {[%emt 0:00:03]} Rf1 {[%emt 0:00:02]} 73. h7 {[%emt 0:00:20]} Rf7+ {[%emt 0:00:01]} 74. Kh6 {[%emt 0:00:01]} Rf6+ {[%emt 0:00:08]} 75. Rg6 {[%emt 0:00:05]} Rf8 {[%emt 0:00:04]} 76. Rg8 {[%emt 0:00:02]} Rf6+ {[%emt 0:00:03]} 77. Kg5 {[%emt 0:00:07]} 1-0

[Event "FIDE Women World Rapid 2024"]
[Site "New York"]
[Date "2024.12.27"]
[Round "8.2"]
[White "Vantika Agrawal"]
[Black "Heinemann, Josefine"]
[Result "1/2-1/2"]
[ECO "D50"]
[WhiteElo "2392"]
[BlackElo "2305"]
[Annotator "ChessBase"]
[PlyCount "63"]
[EventDate "2024.12.14"]
[EventType "swiss"]
[EventCountry "USA"]
[SourceTitle "playchess.com"]
[Source "ChessBase"]
[SourceQuality "1"]
[TimeControl "900+10"]

1. d4 {[%emt 0:00:06]} Nf6 {[%emt 0:00:01]} 2. c4 {[%emt 0:00:02]} e6 {[%emt 0:00:01]} 3. Nf3 {[%emt 0:00:01]} d5 {[%emt 0:00:01]} 4. Nc3 {[%emt 0:00:02]} c5 {[%emt 0:00:02]} 5. cxd5 {[%emt 0:00:04]} cxd4 {[%emt 0:00:01]} 6. Qxd4 {[%emt 0:00:03]} exd5 {[%emt 0:00:01]} 7. Bg5 {[%emt 0:00:07]} Be7 {[%emt 0:00:02]} 8. e3 {[%emt 0:00:06]} O-O {[%emt 0:00:05]} 9. Be2 {[%emt 0:00:04]} Nc6 {[%emt 0:00:09]} 10. Qd3 {[%emt 0:00:11]} Qb6 {[%emt 0:00:21]} 11. O-O {[%emt 0:01:12]} Rd8 {[%emt 0:00:45]} 12. Rfd1 {[%emt 0:01:59]} Be6 {[%emt 0:00:11]} 13. h3 {[%emt 0:01:17]} h6 {[%emt 0:00:33]} 14. Bh4 {[%emt 0:00:09]} Rac8 {[%emt 0:00:36]} 15. a3 {[%emt 0:00:24]} g5 {[%emt 0:03:23]} 16. Bg3 {[%emt 0:00:07]} Ne4 {[%emt 0:00:07]} 17. Nxe4 {[%emt 0:01:11]} dxe4 {[%emt 0:00:01]} 18. Qxe4 {[%emt 0:00:03]} Qxb2 {[%emt 0:00:03]} 19. Bd3 {[%emt 0:01:30]} Qg7 {[%emt 0:00:02]} 20. Rab1 {[%emt 0:03:42]} Rd7 {[%emt 0:01:36]} 21. Ne5 {[%emt 0:00:54]} Nxe5 {[%emt 0:00:24]} 22. Bxe5 {[%emt 0:00:03]} f5 {[%emt 0:01:00]} 23. Qd4 {[%emt 0:03:55]} Rxd4 {[%emt 0:03:01]} 24. Bxg7 {[%emt 0:00:02]} Rxd3 {[%emt 0:01:14]} 25. Rxd3 {[%emt 0:00:02]} Kxg7 {[%emt 0:00:01]} 26. Rxb7 {[%emt 0:00:02]} Rc1+ {[%emt 0:00:14]} 27. Kh2 {[%emt 0:00:01]} Kf6 {[%emt 0:00:01]} 28. Rxa7 {[%emt 0:00:21]} Bc5 {[%emt 0:00:18]} 29. Rh7 {[%emt 0:01:13]} Kg6 {[%emt 0:00:20]} 30. Rc7 {[%emt 0:00:33]} Bxa3 {[%emt 0:01:06]} 31. Rxc1 {[%emt 0:00:16]} Bxc1 {[%emt 0:00:01]} 32. f3 {[%emt 0:00:27]} 1/2-1/2

[Event "FIDE Women World Rapid 2024"]
[Site "New York"]
[Date "2024.12.27"]
[Round "8.3"]
[White "Kosteniuk, Alexandra"]
[Black "Yip, Carissa"]
[Result "1/2-1/2"]
[ECO "C55"]
[WhiteElo "2484"]
[BlackElo "2432"]
[Annotator "ChessBase"]
[PlyCount "90"]
[EventDate "2024.12.14"]
[EventType "swiss"]
[EventCountry "USA"]
[SourceTitle "playchess.com"]
[Source "ChessBase"]
[SourceQuality "1"]
[TimeControl "900+10"]

1. e4 {[%emt 0:00:02]} e5 {[%emt 0:00:01]} 2. Nf3 {[%emt 0:00:02]} Nc6 {[%emt 0:00:01]} 3. Bc4 {[%emt 0:00:02]} Nf6 {[%emt 0:00:01]} 4. d3 {[%emt 0:00:01]} h6 {[%emt 0:00:05]} 5. a4 {[%emt 0:00:03]} d6 {[%emt 0:00:03]} 6. O-O {[%emt 0:00:17]} g6 {[%emt 0:00:27]} 7. c3 {[%emt 0:00:59]} Bg7 {[%emt 0:00:03]} 8. a5 {[%emt 0:00:04]} a6 {[%emt 0:00:01]} 9. Re1 {[%emt 0:00:38]} O-O {[%emt 0:00:06]} 10. h3 {[%emt 0:00:26]} Kh7 {[%emt 0:01:31]} 11. d4 {[%emt 0:00:30]} exd4 {[%emt 0:00:51]} 12. cxd4 {[%emt 0:00:04]} d5 {[%emt 0:00:07]} 13. exd5 {[%emt 0:00:18]} Nxd5 {[%emt 0:00:01]} 14. Nc3 {[%emt 0:00:02]} Be6 {[%emt 0:03:39]} 15. Qb3 {[%emt 0:00:05]} Nxc3 {[%emt 0:00:58]} 16. bxc3 {[%emt 0:00:39]} Bxc4 {[%emt 0:00:01]} 17. Qxc4 {[%emt 0:00:02]} Qf6 {[%emt 0:00:52]} 18. Qb3 {[%emt 0:03:23]} Rab8 {[%emt 0:00:33]} 19. Ba3 {[%emt 0:00:30]} Rfc8 {[%emt 0:01:33]} 20. Ne5 {[%emt 0:02:19]} Nxe5 {[%emt 0:01:41]} 21. Rxe5 {[%emt 0:00:02]} b6 {[%emt 0:00:09]} 22. Be7 {[%emt 0:02:38]} Qf4 {[%emt 0:00:01]} 23. Re3 {[%emt 0:00:01]} bxa5 {[%emt 0:00:10]} 24. Qc2 {[%emt 0:00:01]} c5 {[%emt 0:02:19]} 25. dxc5 {[%emt 0:00:23]} Rb5 {[%emt 0:00:26]} 26. Bd6 {[%emt 0:00:42]} Qc4 {[%emt 0:00:31]} 27. Ra4 {[%emt 0:00:36]} Qb3 {[%emt 0:00:17]} 28. Qxb3 {[%emt 0:00:14]} Rxb3 {[%emt 0:00:02]} 29. Rxa5 {[%emt 0:00:40]} Rc6 {[%emt 0:00:59]} 30. c4 {[%emt 0:00:26]} Rxe3 {[%emt 0:00:33]} 31. fxe3 {[%emt 0:00:02]} Bc3 {[%emt 0:00:01]} 32. Ra4 {[%emt 0:00:24]} a5 {[%emt 0:00:01]} 33. Kf2 {[%emt 0:00:06]} Bb4 {[%emt 0:00:01]} 34. Ke2 {[%emt 0:00:08]} Kg7 {[%emt 0:00:59]} 35. Kd3 {[%emt 0:00:03]} Kf6 {[%emt 0:00:09]} 36. Kd4 {[%emt 0:00:05]} Ke6 {[%emt 0:00:02]} 37. g4 {[%emt 0:00:23]} Rc8 {[%emt 0:00:15]} 38. e4 {[%emt 0:00:52]} f6 {[%emt 0:00:02]} 39. Ra2 {[%emt 0:00:21]} Ra8 {[%emt 0:00:30]} 40. Ra4 {[%emt 0:00:24]} Rh8 {[%emt 0:00:07]} 41. Bc7 {[%emt 0:00:11]} Rc8 {[%emt 0:00:16]} 42. Bb6 {[%emt 0:00:54]} Rc6 {[%emt 0:00:07]} 43. Ra2 {[%emt 0:00:03]} Rc8 {[%emt 0:00:02]} 44. Ra4 {[%emt 0:00:52]} Rc6 {[%emt 0:00:16]} 45. Ra2 {[%emt 0:00:29]} Rc8 {[%emt 0:00:02]} 1/2-1/2

[Event "FIDE Women World Rapid 2024"]
[Site "New York"]
[Date "2024.12.27"]
[Round "8.3"]
[White "Jarocka, Liwia"]
[Black "Yu, Jennifer"]
[Result "1/2-1/2"]
[ECO "C42"]
[WhiteElo "2261"]
[BlackElo "2283"]
[Annotator "ChessBase"]
[PlyCount "92"]
[EventDate "2024.12.14"]
[EventType "swiss"]
[EventCountry "USA"]
[SourceTitle "playchess.com"]
[Source "ChessBase"]
[SourceQuality "1"]
[TimeControl "900+10"]

1. e4 {[%emt 0:00:02]} e5 {[%emt 0:00:09]} 2. Nf3 {[%emt 0:00:01]} Nf6 {[%emt 0:00:01]} 3. Nxe5 {[%emt 0:00:14]} d6 {[%emt 0:00:01]} 4. Nf3 {[%emt 0:00:15]} Nxe4 {[%emt 0:00:02]} 5. d4 {[%emt 0:00:01]} d5 {[%emt 0:00:08]} 6. Bd3 {[%emt 0:00:02]} Nc6 {[%emt 0:00:26]} 7. O-O {[%emt 0:00:02]} Be7 {[%emt 0:00:01]} 8. c4 {[%emt 0:00:07]} Nb4 {[%emt 0:01:46]} 9. Be2 {[%emt 0:00:02]} O-O {[%emt 0:01:32]} 10. Nc3 {[%emt 0:00:02]} Bf5 {[%emt 0:00:56]} 11. a3 {[%emt 0:01:49]} Nxc3 {[%emt 0:00:04]} 12. bxc3 {[%emt 0:00:01]} Nc6 {[%emt 0:00:01]} 13. cxd5 {[%emt 0:00:01]} Qxd5 {[%emt 0:00:01]} 14. Bf4 {[%emt 0:00:01]} Qd8 {[%emt 0:02:19]} 15. d5 {[%emt 0:00:30]} Na5 {[%emt 0:00:00]} 16. c4 {[%emt 0:01:39]} Bf6 {[%emt 0:00:03]} 17. Ra2 {[%emt 0:00:03]} Re8 {[%emt 0:00:42]} 18. Nd4 {[%emt 0:02:10]} Bxd4 {[%emt 0:02:33]} 19. Qxd4 {[%emt 0:00:03]} Re4 {[%emt 0:00:19]} 20. Qc5 {[%emt 0:01:42]} Rxf4 {[%emt 0:01:52]} 21. Qxa5 {[%emt 0:00:01]} Be4 {[%emt 0:00:26]} 22. Qd2 {[%emt 0:01:47]} Qf6 {[%emt 0:01:16]} 23. f3 {[%emt 0:00:38]} Bg6 {[%emt 0:00:09]} 24. Qb2 {[%emt 0:00:02]} Qb6+ {[%emt 0:00:45]} 25. Kh1 {[%emt 0:00:25]} Re8 {[%emt 0:00:10]} 26. Qxb6 {[%emt 0:00:38]} axb6 {[%emt 0:00:03]} 27. Rd1 {[%emt 0:00:14]} h6 {[%emt 0:00:44]} 28. Kg1 {[%emt 0:00:06]} Re3 {[%emt 0:01:05]} 29. d6 {[%emt 0:01:01]} cxd6 {[%emt 0:00:01]} 30. Rxd6 {[%emt 0:00:02]} Rb3 {[%emt 0:00:01]} 31. Rd7 {[%emt 0:00:25]} Be4 {[%emt 0:01:57]} 32. g3 {[%emt 0:00:31]} Rfxf3 {[%emt 0:00:10]} 33. Bxf3 {[%emt 0:00:08]} Bxf3 {[%emt 0:00:02]} 34. a4 {[%emt 0:00:52]} g5 {[%emt 0:00:08]} 35. Rdd2 {[%emt 0:00:49]} Kg7 {[%emt 0:00:33]} 36. Kf2 {[%emt 0:01:47]} Bc6 {[%emt 0:00:07]} 37. a5 {[%emt 0:01:21]} bxa5 {[%emt 0:00:18]} 38. Rxa5 {[%emt 0:00:01]} Rf3+ {[%emt 0:00:07]} 39. Kg1 {[%emt 0:00:04]} Rc3 {[%emt 0:00:07]} 40. Rc5 {[%emt 0:00:14]} Kg6 {[%emt 0:00:11]} 41. Rd6+ {[%emt 0:00:08]} Kh5 {[%emt 0:00:15]} 42. Rf6 {[%emt 0:00:52]} Rc1+ {[%emt 0:00:13]} 43. Rf1 {[%emt 0:00:01]} Rc2 {[%emt 0:00:02]} 44. Rf2 {[%emt 0:00:01]} Rc1+ {[%emt 0:00:02]} 45. Rf1 {[%emt 0:00:03]} Rc2 {[%emt 0:00:01]} 46. Rf2 {[%emt 0:00:08]} Rc1+ {[%emt 0:00:02]} 1/2-1/2

[Event "FIDE Women World Rapid 2024"]
[Site "New York"]
[Date "2024.12.27"]
[Round "8.4"]
[White "Batsiashvili, Nino"]
[Black "Koneru, Humpy"]
[Result "0-1"]
[ECO "E52"]
[WhiteElo "2476"]
[BlackElo "2523"]
[Annotator "ChessBase"]
[PlyCount "86"]
[EventDate "2024.12.14"]
[EventType "swiss"]
[EventCountry "USA"]
[SourceTitle "playchess.com"]
[Source "ChessBase"]
[SourceQuality "1"]
[TimeControl "900+10"]

1. d4 {[%emt 0:00:01]} Nf6 {[%emt 0:00:02]} 2. c4 {[%emt 0:00:01]} e6 {[%emt 0:00:02]} 3. Nc3 {[%emt 0:00:01]} Bb4 {[%emt 0:00:07]} 4. Nf3 {[%emt 0:00:02]} b6 {[%emt 0:02:07]} 5. e3 {[%emt 0:00:04]} Bb7 {[%emt 0:00:20]} 6. Bd3 {[%emt 0:00:01]} O-O {[%emt 0:00:15]} 7. O-O {[%emt 0:00:02]} d5 {[%emt 0:00:15]} 8. cxd5 {[%emt 0:00:02]} exd5 {[%emt 0:00:05]} 9. Ne5 {[%emt 0:00:02]} Re8 {[%emt 0:02:02]} 10. Bd2 {[%emt 0:00:03]} Bd6 {[%emt 0:00:31]} 11. f4 {[%emt 0:00:32]} c5 {[%emt 0:00:23]} 12. Be1 {[%emt 0:03:43]} a6 {[%emt 0:02:30]} 13. Qf3 {[%emt 0:00:23]} cxd4 {[%emt 0:01:13]} 14. exd4 {[%emt 0:00:02]} Nc6 {[%emt 0:00:13]} 15. Bf2 {[%emt 0:00:09]} Bb4 {[%emt 0:01:24]} 16. Rad1 {[%emt 0:02:34]} b5 {[%emt 0:01:17]} 17. Ne2 {[%emt 0:03:35]} Ne4 {[%emt 0:01:01]} 18. a3 {[%emt 0:00:37]} Bf8 {[%emt 0:00:33]} 19. Ng3 {[%emt 0:00:13]} Na5 {[%emt 0:00:49]} 20. Rfe1 {[%emt 0:01:07]} f6 {[%emt 0:00:14]} 21. Ng4 {[%emt 0:00:22]} Nc4 {[%emt 0:00:04]} 22. Re2 {[%emt 0:00:22]} Qd7 {[%emt 0:00:23]} 23. f5 {[%emt 0:00:41]} Qf7 {[%emt 0:00:43]} 24. Ne3 {[%emt 0:00:37]} Ncd6 {[%emt 0:00:44]} 25. Bb1 {[%emt 0:00:19]} Nxg3 {[%emt 0:00:37]} 26. Bxg3 {[%emt 0:00:08]} Ne4 {[%emt 0:00:02]} 27. Ba2 {[%emt 0:00:30]} Rad8 {[%emt 0:00:30]} 28. Bf4 {[%emt 0:00:18]} Bd6 {[%emt 0:00:12]} 29. Rde1 {[%emt 0:00:24]} Bxf4 {[%emt 0:00:32]} 30. Qxf4 {[%emt 0:00:01]} Nd6 {[%emt 0:00:26]} 31. Qf3 {[%emt 0:00:54]} Nc4 {[%emt 0:00:06]} 32. Nxc4 {[%emt 0:01:50]} Rxe2 {[%emt 0:00:03]} 33. Qxe2 {[%emt 0:00:27]} dxc4 {[%emt 0:00:06]} 34. Qf2 {[%emt 0:00:21]} Qd5 {[%emt 0:00:25]} 35. b3 {[%emt 0:00:09]} cxb3 {[%emt 0:00:11]} 36. Bb1 {[%emt 0:00:04]} Qxd4 {[%emt 0:00:10]} 37. Re8+ {[%emt 0:00:25]} Kf7 {[%emt 0:00:01]} 38. Rxd8 {[%emt 0:00:01]} Qxd8 {[%emt 0:00:02]} 39. Qc5 {[%emt 0:00:09]} Qd1+ {[%emt 0:00:15]} 40. Kf2 {[%emt 0:00:00]} Qd2+ {[%emt 0:00:03]} 41. Kg3 {[%emt 0:00:09]} Qxg2+ {[%emt 0:00:04]} 42. Kh4 {[%emt 0:00:01]} Qxh2+ {[%emt 0:00:09]} 43. Kg4 {[%emt 0:00:01]} h5# {[%emt 0:00:04]} 0-1

[Event "FIDE Women World Rapid 2024"]
[Site "New York"]
[Date "2024.12.27"]
[Round "8.4"]
[White "Peycheva, Gergana"]
[Black "Injac, Teodora"]
[Result "0-1"]
[ECO "E11"]
[WhiteElo "2212"]
[BlackElo "2441"]
[Annotator "ChessBase"]
[PlyCount "92"]
[EventDate "2024.12.14"]
[EventType "swiss"]
[EventCountry "USA"]
[SourceTitle "playchess.com"]
[Source "ChessBase"]
[SourceQuality "1"]
[TimeControl "900+10"]

1. d4 {[%emt 0:00:02]} Nf6 {[%emt 0:00:04]} 2. c4 {[%emt 0:00:02]} e6 {[%emt 0:00:06]} 3. Nc3 {[%emt 0:00:03]} Bb4 {[%emt 0:00:09]} 4. e3 {[%emt 0:00:07]} O-O {[%emt 0:00:12]} 5. Bd2 {[%emt 0:00:04]} c5 {[%emt 0:00:25]} 6. Nf3 {[%emt 0:00:38]} b6 {[%emt 0:01:01]} 7. dxc5 {[%emt 0:01:32]} Bxc5 {[%emt 0:02:21]} 8. Be2 {[%emt 0:00:12]} Bb7 {[%emt 0:00:01]} 9. O-O {[%emt 0:00:04]} Be7 {[%emt 0:01:25]} 10. a3 {[%emt 0:00:24]} a6 {[%emt 0:01:00]} 11. b4 {[%emt 0:01:21]} Qc7 {[%emt 0:00:03]} 12. Qb3 {[%emt 0:00:21]} Ng4 {[%emt 0:01:36]} 13. h3 {[%emt 0:02:05]} Bxf3 {[%emt 0:01:05]} 14. hxg4 {[%emt 0:00:02]} Bxe2 {[%emt 0:00:58]} 15. Nxe2 {[%emt 0:00:02]} Nc6 {[%emt 0:00:00]} 16. Rac1 {[%emt 0:01:19]} Ne5 {[%emt 0:00:16]} 17. f3 {[%emt 0:02:05]} Rfc8 {[%emt 0:00:28]} 18. Be1 {[%emt 0:00:56]} Nxc4 {[%emt 0:00:53]} 19. Bg3 {[%emt 0:00:02]} d6 {[%emt 0:00:32]} 20. Rfd1 {[%emt 0:00:20]} b5 {[%emt 0:00:10]} 21. Rd3 {[%emt 0:01:50]} Qa7 {[%emt 0:00:42]} 22. Bf2 {[%emt 0:01:23]} Bd8 {[%emt 0:00:42]} 23. a4 {[%emt 0:01:08]} Qb7 {[%emt 0:01:06]} 24. Rdd1 {[%emt 0:01:12]} Bb6 {[%emt 0:00:25]} 25. a5 {[%emt 0:00:12]} Ba7 {[%emt 0:00:03]} 26. Ng3 {[%emt 0:00:31]} Qe7 {[%emt 0:00:33]} 27. Ne2 {[%emt 0:01:11]} Rc7 {[%emt 0:00:08]} 28. Rc3 {[%emt 0:00:25]} Rac8 {[%emt 0:00:03]} 29. Rcd3 {[%emt 0:00:10]} h6 {[%emt 0:01:44]} 30. Nd4 {[%emt 0:00:03]} Qg5 {[%emt 0:00:23]} 31. Ne2 {[%emt 0:00:15]} h5 {[%emt 0:00:45]} 32. gxh5 {[%emt 0:00:05]} Qxh5 {[%emt 0:00:05]} 33. Ng3 {[%emt 0:00:15]} Qg6 {[%emt 0:00:04]} 34. Ne4 {[%emt 0:00:15]} d5 {[%emt 0:00:06]} 35. Ng3 {[%emt 0:00:06]} Rc6 {[%emt 0:00:15]} 36. f4 {[%emt 0:00:15]} Nd6 {[%emt 0:00:16]} 37. R3d2 {[%emt 0:00:10]} Rc3 {[%emt 0:00:06]} 38. Qb2 {[%emt 0:00:08]} Bxe3 {[%emt 0:00:13]} 39. Bxe3 {[%emt 0:00:07]} Rxe3 {[%emt 0:00:03]} 40. Nf1 {[%emt 0:00:03]} Rec3 {[%emt 0:00:16]} 41. Rf2 {[%emt 0:00:21]} Ne4 {[%emt 0:00:06]} 42. Re2 {[%emt 0:00:08]} Qg4 {[%emt 0:00:25]} 43. Rde1 {[%emt 0:00:13]} Qxf4 {[%emt 0:00:06]} 44. Nd2 {[%emt 0:00:05]} Rc2 {[%emt 0:00:17]} 45. Qd4 {[%emt 0:00:13]} Rxd2 {[%emt 0:00:17]} 46. Rxd2 {[%emt 0:00:01]} Qxd2 {[%emt 0:00:01]} 0-1